bitfinex-derivatives/quotes_SOLF0:USTF0_20260227
["timestamp","ask_amount","ask_price","bid_price","bid_amount"]
[1772212325574,7.00727258,81.539,81.477,13.48056457]
[1772212326268,11.0374,81.539,81.477,13.48056457]
[1772212326477,7.02575084,81.554,81.477,13.48056457]
[1772212326870,7.02575084,81.554,81.489,11.044]
[1772212327078,7.02575084,81.519,81.461,13.48056457]
[1772212328476,7.07283026,81.537,81.461,13.48056457]
[1772212328780,9.6607761,81.536,81.461,13.48056457]
[1772212328981,7.09065761,81.534,81.471,13.48056457]
[1772212329180,7.09065761,81.532,81.471,13.48056457]
[1772212329485,7.09065761,81.53,81.471,13.48056457]
[1772212329779,17.02063763,81.529,81.471,13.48056457]
[1772212329982,7.35986153,81.529,81.471,13.48056457]
[1772212330485,7.37806629,81.527,81.471,13.48056457]
[1772212330777,7.37806629,81.525,81.471,13.48056457]
[1772212330982,7.37806629,81.523,81.471,13.48056457]
[1772212331188,7.37806629,81.538,81.471,13.48056457]
[1772212331480,7.37806629,81.536,81.473,11.0461]
[1772212331682,7.39761221,81.534,81.474,13.79531932]
[1772212331876,7.39761221,81.532,81.474,13.79531932]
[1772212332076,7.39761221,81.53,81.474,13.79531932]
[1772212332777,7.41477231,81.528,81.474,13.79531932]
[1772212333986,9.65104436,81.527,81.474,13.79531932]
[1772212334185,9.65104436,81.526,81.474,13.79531932]
[1772212334379,7.41477231,81.528,81.474,13.79531932]
[1772212334576,9.65234566,81.527,81.474,13.79531932]
[1772212334775,9.65234566,81.526,81.474,13.79531932]
[1772212334981,7.41477231,81.528,81.474,13.79531932]
[1772212335282,9.65237325,81.527,81.474,13.79531932]
[1772212335483,7.41477231,81.528,81.474,13.79531932]
[1772212336277,11.039,81.527,81.474,13.79531932]
[1772212337384,11.0392,81.525,81.474,13.79531932]
[1772212338288,11.0381,81.533,81.475,11.0459]
[1772212338490,9.6575138,81.532,81.476,13.79531932]
[1772212338686,9.6575138,81.531,81.476,13.79531932]
[1772212338891,9.37843349,81.54,81.476,13.79531932]
[1772212338892,9.6575138,81.53,81.476,13.79531932]
[1772212339086,9.6575138,81.529,81.476,13.79531932]
[1772212339390,9.6575138,81.528,81.476,13.79531932]
[1772212339588,9.6575138,81.527,81.476,13.79531932]
[1772212339782,7.52123063,81.539,81.476,13.79531932]
[1772212339980,11.0396,81.523,81.476,13.79531932]
[1772212340781,11.0405,81.516,81.476,13.79531932]
[1772212343894,11.0395,81.523,81.476,13.79531932]
[1772212344794,11.0403,81.517,81.476,13.79531932]
[1772212346685,11.0411,81.511,81.476,13.79531932]
[1772212347297,11.0415,81.509,81.476,13.79531932]
[1772212347793,11.0422,81.503,81.458,13.79531932]
[1772212348097,3.50374552,81.5,81.458,13.79531932]
[1772212348294,3.50374552,81.51,81.458,13.79531932]
[1772212348694,3.50374552,81.51,81.465,13.79531932]
[1772212350089,11.0415,81.508,81.465,13.79531932]
[1772212350894,3.50374552,81.51,81.465,13.79531932]
[1772212351098,3.50374552,81.52,81.47,13.79531932]
[1772212351300,3.50374552,81.51,81.47,13.79531932]
[1772212351797,11.04,81.519,81.46,3.50374552]
[1772212351798,7.70747007,81.524,81.477,13.79531932]
[1772212351999,3.50374552,81.52,81.477,13.79531932]
[1772212352701,3.50374552,81.51,81.477,13.79531932]
[1772212353097,11.0424,81.501,81.458,13.79531932]
[1772212353405,3.50374552,81.5,81.458,13.79531932]
[1772212353794,3.50374552,81.5,81.454,10.77]
[1772212353795,3.50374552,81.5,81.459,13.79531932]
[1772212354999,11.22968052,81.5,81.459,13.79531932]
[1772212355302,3.50374552,81.48,81.454,10.77]
[1772212355610,3.50374552,81.47,81.454,10.77]
[1772212355800,3.50374552,81.48,81.454,10.77]
[1772212357000,3.50374552,81.49,81.454,24.56531932]
[1772212357304,3.50374552,81.49,81.455,13.79531932]
[1772212357806,3.50374552,81.5,81.457,13.79531932]
[1772212358001,9.65373631,81.499,81.457,13.79531932]
[1772212358200,3.50374552,81.49,81.457,13.79531932]
[1772212358608,3.50374552,81.48,81.454,10.77]
[1772212359603,7.68415752,81.503,81.456,14.36770465]
[1772212359905,3.50374552,81.51,81.461,14.36770465]
[1772212360106,3.50374552,81.5,81.472,11.0463]
[1772212360309,3.50374552,81.49,81.454,10.77]
[1772212360807,3.50374552,81.49,81.455,14.84634998]
[1772212361506,3.50374552,81.48,81.454,10.77]
[1772212361807,51.67326521,81.528,81.411,16.58839062]
[1772212361808,3.50374552,81.46,81.411,16.58839062]
[1772212362004,3.50374552,81.47,81.414,16.58839062]
[1772212362207,3.50374552,81.48,81.421,16.58839062]
[1772212362608,3.50374552,81.5,81.441,16.58850074]
[1772212362807,3.50374552,81.5,81.44,3.50374552]
[1772212362808,3.50374552,81.52,81.461,16.58850074]
[1772212363010,9.66520521,81.519,81.461,16.58850074]
[1772212363310,9.66520521,81.518,81.461,16.58850074]
[1772212363508,9.38524468,81.53,81.461,16.58850074]
[1772212363509,9.66520521,81.517,81.461,16.58850074]
[1772212363712,9.66520521,81.516,81.461,16.58850074]
[1772212363909,9.66520521,81.529,81.461,16.58850074]
[1772212364111,9.66520521,81.528,81.461,16.58850074]
[1772212364309,9.66520521,81.527,81.461,16.58850074]
[1772212364510,9.66520521,81.526,81.461,16.58850074]
[1772212364712,9.38524468,81.53,81.465,16.66220516]
[1772212364915,9.38524468,81.55,81.465,16.66220516]
[1772212365114,9.67283844,81.549,81.465,16.66220516]
[1772212365312,9.67283844,81.548,81.465,16.66220516]
[1772212365512,9.67283844,81.547,81.465,16.66220516]
[1772212365714,9.67283844,81.546,81.465,16.66220516]
[1772212365914,9.67283844,81.545,81.48,16.70123747]
[1772212366115,9.67283844,81.544,81.48,16.70123747]
[1772212366315,11.0374,81.539,81.48,16.70123747]
[1772212366515,9.67221636,81.538,81.48,16.70123747]
[1772212366814,9.38524468,81.54,81.48,16.70123747]
[1772212367613,9.67444712,81.539,81.48,16.70123747]
[1772212367915,9.38524468,81.54,81.462,10.58]
[1772212367916,9.67444712,81.538,81.463,16.78561488]
[1772212368108,11.0387,81.529,81.463,16.78561488]
[1772212368306,9.67444712,81.528,81.463,16.78561488]
[1772212368507,11.0391,81.526,81.463,16.78561488]
[1772212368715,9.67444712,81.525,81.463,16.78561488]
[1772212369017,9.38524468,81.52,81.462,27.36560636]
[1772212369217,11.0405,81.516,81.462,27.36560636]
[1772212369405,9.67444712,81.515,81.462,27.36560636]
[1772212369611,9.67444712,81.514,81.462,27.36560636]
[1772212369814,9.38524468,81.52,81.462,27.36560636]
[1772212369815,9.67444712,81.513,81.462,27.36560636]
[1772212370115,9.67444712,81.512,81.462,27.36560636]
[1772212370316,9.38524468,81.52,81.462,27.36560636]
[1772212370616,9.67977343,81.519,81.462,27.36560636]
[1772212370818,9.67977343,81.518,81.462,27.36560636]
[1772212371014,9.67977343,81.517,81.462,10.58]
[1772212371321,9.67977343,81.516,81.463,16.77242681]
[1772212371518,9.67977343,81.515,81.463,16.77242681]
[1772212371718,9.67977343,81.514,81.463,16.77242681]
[1772212371917,9.67977343,81.513,81.463,16.77242681]
[1772212372111,9.67977343,81.512,81.462,10.58]
[1772212372310,9.67977343,81.511,81.462,27.26551405]
[1772212372516,9.38524468,81.52,81.463,16.68551405]
[1772212372716,9.68039553,81.519,81.463,16.68551405]
[1772212372916,9.68039553,81.518,81.463,16.68551405]
[1772212373218,9.68039553,81.517,81.463,16.68551405]
[1772212373421,11.0417,81.507,81.463,16.68551405]
[1772212374017,9.68073789,81.506,81.463,16.68551405]
[1772212374218,9.68073789,81.505,81.463,16.68551405]
[1772212374419,9.68073789,81.504,81.463,16.68551405]
[1772212374619,9.68073789,81.503,81.463,16.68551405]
[1772212374820,9.68073789,81.502,81.463,16.68551405]
[1772212375022,11.0417,81.507,81.463,16.68551405]
[1772212375222,9.38524468,81.52,81.463,16.68551405]
[1772212375223,11.0419,81.505,81.463,16.68551405]
[1772212375422,9.68001411,81.504,81.463,16.68551405]
[1772212375622,9.68001411,81.503,81.463,16.68551405]
[1772212375822,9.68001411,81.502,81.463,16.68551405]
[1772212376025,11.0419,81.505,81.463,16.68551405]
[1772212376226,11.0423,81.502,81.463,16.68551405]
[1772212376426,9.38524468,81.52,81.463,16.68551405]
[1772212376626,9.67994538,81.519,81.463,16.68551405]
[1772212376826,9.67994538,81.518,81.463,16.68551405]
[1772212377029,9.67994538,81.517,81.463,16.68551405]
[1772212377222,9.67994538,81.516,81.463,16.68551405]
[1772212377423,9.67994538,81.515,81.463,16.68551405]
[1772212377727,11.0421,81.504,81.463,16.68551405]
[1772212377923,9.67994538,81.503,81.463,16.68551405]
[1772212378123,9.67994538,81.502,81.463,16.68551405]
[1772212378426,11.0421,81.504,81.463,16.68551405]
[1772212378627,11.0421,81.504,81.462,10.58]
[1772212378628,9.67912866,81.503,81.462,10.58]
[1772212378929,9.67912866,81.502,81.462,10.58]
[1772212379128,9.67912866,81.501,81.462,10.58]
[1772212379331,9.67912866,81.5,81.462,10.58]
[1772212379530,9.67912866,81.499,81.462,10.58]
[1772212379824,11.0441,81.489,81.462,10.58]
[1772212380030,9.67681987,81.488,81.433,16.60976216]
[1772212380225,9.38524468,81.48,81.433,16.60976216]
[1772212380422,9.67681987,81.479,81.433,16.60976216]
[1772212380625,9.67681987,81.478,81.433,16.60976216]
[1772212380826,9.67681987,81.477,81.433,16.60976216]
[1772212381032,11.0469,81.468,81.433,16.60976216]
[1772212381234,11.0469,81.468,81.384,16.60980663]
[1772212381734,11.0469,81.468,81.414,16.62332672]
[1772212382631,11.0458,81.476,81.416,16.62336466]
[1772212382827,9.6639487,81.475,81.416,16.62336466]
[1772212383031,9.38524468,81.48,81.416,16.62336466]
[1772212383226,9.66380348,81.479,81.418,16.62336466]
[1772212383533,36.71,81.5,81.418,16.62336466]
[1772212383534,9.38524468,81.5,81.418,16.62336466]
[1772212383735,9.66289372,81.499,81.418,16.62336466]
[1772212384035,9.66289372,81.498,81.418,16.62336466]
[1772212384234,9.38524468,81.5,81.4,9.38524468]
[1772212384235,9.66289372,81.497,81.42,16.67001055]
[1772212384434,9.66289372,81.496,81.42,16.67001055]
[1772212384637,9.66289372,81.495,81.441,16.6700357]
[1772212384932,9.66289372,81.494,81.441,16.6700357]
[1772212385235,3.50510948,81.48,81.441,16.6700357]
[1772212388938,3.50510948,81.49,81.443,16.5595437]
[1772212390034,3.50510948,81.49,81.452,16.54584994]
[1772212390237,3.50510948,81.5,81.452,16.54584994]
[1772212390742,3.50510948,81.5,81.455,16.54602181]
[1772212391038,9.65937909,81.499,81.455,16.54602181]
[1772212391238,3.50510948,81.49,81.455,16.54602181]
[1772212392241,29.97031459,81.561,81.419,15.84]
[1772212392242,3.50510948,81.5,81.462,16.61388461]
[1772212392438,3.50510948,81.51,81.462,16.61388461]
[1772212392740,9.66179008,81.509,81.462,16.61388461]
[1772212392930,9.66179008,81.508,81.462,16.61388461]
[1772212393132,9.66179008,81.507,81.462,16.61388461]
[1772212393331,9.66179008,81.506,81.462,16.61388461]
[1772212393542,9.66179008,81.505,81.462,16.61388461]
[1772212393737,3.50510948,81.51,81.462,16.61388461]
[1772212393940,9.65957021,81.509,81.465,11.0473]
[1772212394131,3.50510948,81.51,81.465,11.0473]
[1772212394132,9.65957021,81.508,81.466,16.62693871]
[1772212394332,9.65957021,81.507,81.466,16.62693871]
[1772212394643,9.65957021,81.506,81.466,16.62693871]
[1772212394845,3.50510948,81.5,81.466,16.62693871]
[1772212396140,3.50510948,81.53,81.482,16.6304795]
[1772212396444,9.66225154,81.529,81.482,16.6304795]
[1772212396746,9.66225154,81.528,81.483,11.0448]
[1772212396938,9.66225154,81.527,81.483,11.0448]
[1772212397139,9.66225154,81.526,81.483,11.0448]
[1772212397335,3.50510948,81.52,81.483,16.63051065]
[1772212397539,3.50510948,81.52,81.476,11.0457]
[1772212398641,3.50510948,81.52,81.469,16.5983193]
[1772212399242,3.50510948,81.51,81.469,16.5983193]
[1772212399643,11.22714305,81.531,81.469,16.5983193]
[1772212399849,3.50510948,81.51,81.469,16.5983193]
[1772212401246,3.5033972,81.51,81.469,16.5983193]
[1772212403347,11.0414,81.509,81.469,16.5983193]
[1772212403548,3.5033972,81.5,81.469,16.5983193]
[1772212408559,11.0414,81.509,81.469,16.5983193]
[1772212408863,3.5033972,81.51,81.469,16.5983193]
[1772212409051,3.5033972,81.52,81.469,16.5983193]
[1772212409255,9.66681778,81.519,81.469,16.5983193]
[1772212409562,11.0404,81.517,81.47,16.37563715]
[1772212409751,3.5033972,81.51,81.47,16.37563715]
[1772212411267,9.67000509,81.509,81.47,16.37563715]
[1772212411562,3.5033972,81.5,81.47,16.37563715]
[1772212414366,11.22714305,81.528,81.47,16.37563715]
[1772212414666,171.5819,81.592,81.47,16.37563715]
[1772212414667,3.5033972,81.5,81.47,16.37563715]
[1772212415965,3.5033972,81.51,81.47,16.37563715]
[1772212416364,11.22714305,81.528,81.47,16.37563715]
[1772212416365,3.5033972,81.5,81.47,16.37563715]
[1772212418069,3.5033972,81.51,81.47,16.37563715]
[1772212418566,9.66792655,81.509,81.47,16.37563715]
[1772212418764,3.5033972,81.51,81.47,16.37563715]
[1772212418960,9.66801816,81.509,81.47,16.37563715]
[1772212419167,3.5033972,81.5,81.47,16.37563715]
[1772212419361,3.5033972,81.5,81.418,22.1072]
[1772212419362,3.5033972,81.49,81.441,16.68618074]
[1772212419561,3.5033972,81.48,81.442,16.67817343]
[1772212419766,11.22714305,81.506,81.442,16.67817343]
[1772212419967,3.5033972,81.47,81.442,16.67817343]
[1772212422465,3.5033972,81.48,81.442,16.67817343]
[1772212423262,3.5033972,81.49,81.444,16.71154286]
[1772212424874,3.5033972,81.49,81.446,16.79581832]
[1772212425667,3.5033972,81.49,81.447,11.0497]
[1772212425875,3.5033972,81.49,81.448,16.80340386]
[1772212426368,11.0432,81.496,81.448,16.80340386]
[1772212426569,9.66447378,81.495,81.45,16.80335125]
[1772212426873,3.5033972,81.51,81.45,20.30674845]
[1772212427068,9.66645799,81.509,81.45,20.30674845]
[1772212427267,9.66645799,81.508,81.45,20.30674845]
[1772212427468,9.66645799,81.507,81.45,20.30674845]
[1772212427668,9.66645799,81.506,81.45,20.30674845]
[1772212427868,9.66645799,81.505,81.46,16.80297751]
[1772212428168,14.5446972,81.51,81.46,16.80297751]
[1772212428169,9.66645799,81.504,81.46,16.80297751]
[1772212428368,9.66645799,81.503,81.46,16.80297751]
[1772212428567,14.5446972,81.51,81.46,16.80297751]
[1772212428568,9.66645799,81.502,81.461,11.0478]
[1772212428872,3.5033972,81.51,81.462,16.80292625]
[1772212429067,9.67439972,81.509,81.462,16.80292625]
[1772212429267,9.67439972,81.508,81.464,16.80292625]
[1772212429463,9.67439972,81.507,81.464,16.80292625]
[1772212429669,9.67439972,81.506,81.464,16.80292625]
[1772212429862,9.67439972,81.505,81.464,16.80292625]
[1772212430064,3.5033972,81.51,81.464,16.80292625]
[1772212430264,9.67379415,81.509,81.464,16.80292625]
[1772212430468,9.67379415,81.508,81.464,16.80292625]
[1772212430672,9.67379415,81.507,81.464,16.80292625]
[1772212430874,9.67379415,81.506,81.466,16.78016641]
[1772212431068,3.5033972,81.5,81.466,16.78016641]
[1772212432575,3.5033972,81.51,81.466,16.78016641]
[1772212432769,9.67775367,81.509,81.466,16.78016641]
[1772212432972,9.67770116,81.508,81.47,16.56305639]
[1772212433168,3.5033972,81.51,81.47,16.56305639]
[1772212433371,9.67874677,81.509,81.47,16.56305639]
[1772212433571,9.67874677,81.508,81.47,16.56305639]
[1772212433773,3.5033972,81.51,81.47,16.56305639]
[1772212433972,9.67874677,81.509,81.47,16.56305639]
[1772212434173,9.67874677,81.508,81.47,16.56305639]
[1772212434373,9.67827258,81.507,81.47,16.56305639]
[1772212434570,3.5033972,81.51,81.47,16.56305639]
[1772212434771,9.67832155,81.509,81.47,16.56305639]
[1772212434965,9.67832155,81.508,81.47,16.56305639]
[1772212435175,3.5033972,81.51,81.47,16.56305639]
[1772212435376,9.67757524,81.509,81.47,16.56305639]
[1772212435676,9.67757524,81.508,81.47,16.56305639]
[1772212435878,3.5033972,81.5,81.47,16.56305639]
[1772212436477,11.0413,81.51,81.47,16.56305639]
[1772212436774,9.67865058,81.509,81.47,16.56305639]
[1772212436974,9.67865058,81.508,81.47,16.56305639]
[1772212437169,9.67865058,81.507,81.47,16.56305639]
[1772212437380,3.5033972,81.51,81.47,16.56305639]
[1772212437580,9.67941795,81.509,81.47,16.56305639]
[1772212437773,9.67941795,81.508,81.47,16.56305639]
[1772212437974,9.67941795,81.507,81.47,16.56305639]
[1772212438177,3.5033972,81.51,81.47,16.56305639]
[1772212438375,9.67929924,81.509,81.47,16.56305639]
[1772212438571,9.67929924,81.508,81.47,16.56305639]
[1772212438776,9.67929924,81.507,81.47,16.56305639]
[1772212439072,3.5033972,81.51,81.47,16.56305639]
[1772212439277,9.67929312,81.509,81.47,16.56305639]
[1772212439480,9.67929312,81.508,81.47,16.56305639]
[1772212439780,9.67929312,81.507,81.47,16.56305639]
[1772212439981,3.5033972,81.51,81.47,16.56305639]
[1772212440178,9.67918564,81.509,81.47,16.56305639]
[1772212440480,9.67918564,81.508,81.47,16.56305639]
[1772212440682,3.5033972,81.51,81.47,16.56305639]
[1772212440880,9.67870846,81.509,81.47,16.56305639]
[1772212441084,9.67870846,81.508,81.47,16.56305639]
[1772212441379,3.5033972,81.51,81.47,16.56305639]
[1772212441681,9.67966624,81.509,81.472,11.0463]
[1772212441877,9.67966624,81.508,81.473,16.56314139]
[1772212442079,11.0399,81.52,81.473,16.56314139]
[1772212442381,3.5033972,81.51,81.473,16.56314139]
[1772212442582,3.5033972,81.5,81.473,16.56314139]
[1772212442980,3.5033972,81.51,81.473,16.56314139]
[1772212443182,9.66912633,81.509,81.473,16.56314139]
[1772212443383,9.66912633,81.508,81.473,16.56314139]
[1772212443584,3.5033972,81.51,81.473,16.56314139]
[1772212443585,9.66912633,81.507,81.473,16.56314139]
[1772212443783,3.5033972,81.51,81.473,16.56314139]
[1772212443985,9.66954755,81.509,81.473,16.56314139]
[1772212444185,3.5033972,81.52,81.473,16.56314139]
[1772212444485,9.66969336,81.519,81.473,16.56314139]
[1772212444685,9.66969336,81.518,81.473,16.56314139]
[1772212444983,9.66969336,81.517,81.473,16.56314139]
[1772212445185,9.66969336,81.516,81.473,16.56314139]
[1772212445386,9.66969336,81.515,81.473,16.56314139]
[1772212445683,9.66969336,81.515,81.46,3.5033972]
[1772212445684,9.66969336,81.514,81.477,16.54698396]
[1772212445884,9.66969336,81.513,81.477,16.54698396]
[1772212446086,3.5033972,81.52,81.477,16.54698396]
[1772212446277,9.66523529,81.519,81.477,16.54698396]
[1772212446477,9.66523529,81.518,81.477,16.54698396]
[1772212446681,9.66523529,81.517,81.477,16.54698396]
[1772212446878,9.66523529,81.516,81.477,16.54698396]
[1772212447090,9.66523529,81.515,81.477,16.54698396]
[1772212447386,9.66523529,81.514,81.477,16.54698396]
[1772212447577,3.5033972,81.52,81.477,16.54698396]
[1772212447778,9.65782652,81.519,81.477,16.54698396]
[1772212447981,9.65782652,81.518,81.479,16.55433745]
[1772212448179,9.65782652,81.517,81.479,16.55433745]
[1772212448382,36.71,81.551,81.479,16.55433745]
[1772212448383,3.5033972,81.51,81.479,16.55433745]
[1772212450388,11.0405,81.516,81.479,16.55433745]
[1772212450588,3.5033972,81.52,81.479,16.55433745]
[1772212450793,9.65627082,81.519,81.479,16.55433745]
[1772212450986,9.65627082,81.518,81.479,16.55433745]
[1772212451186,3.5033972,81.53,81.481,16.5358835]
[1772212451492,9.65834072,81.529,81.481,16.5358835]
[1772212451787,9.65834072,81.529,81.433,36.71]
[1772212451788,14.73054025,81.56,81.501,16.54073018]
[1772212451991,9.66168247,81.559,81.501,16.54073018]
[1772212452183,9.66168247,81.558,81.501,16.54073018]
[1772212452381,9.66168247,81.557,81.501,16.54073018]
[1772212452586,3.5033972,81.56,81.501,16.54073018]
[1772212452786,9.65499126,81.559,81.501,16.54073018]
[1772212452988,9.65499126,81.558,81.516,16.54093029]
[1772212453182,9.65499126,81.557,81.516,16.54093029]
[1772212453390,9.65499126,81.556,81.516,16.54093029]
[1772212453693,9.65499126,81.555,81.518,16.68984797]
[1772212453893,3.5033972,81.55,81.518,16.68984797]
[1772212454283,3.5033972,81.55,81.453,36.71]
[1772212454483,3.5033972,81.54,81.504,16.68984797]
[1772212455895,3.5033972,81.54,81.505,11.0419]
[1772212456096,3.5033972,81.54,81.506,16.65683595]
[1772212458296,3.5033972,81.54,81.507,11.0416]
[1772212458490,3.5033972,81.55,81.508,16.66270992]
[1772212459887,11.0335,81.567,81.51,16.66396491]
[1772212460190,3.5033972,81.55,81.51,16.66396491]
[1772212460787,3.5033972,81.56,81.518,16.66404553]
[1772212461396,3.49884168,81.56,81.52,11.0398]
[1772212461596,3.49884168,81.56,81.521,16.43929311]
[1772212465298,14.53194168,81.57,81.521,16.43929311]
[1772212465498,3.49884168,81.56,81.521,16.43929311]
[1772212465696,3.49884168,81.56,81.508,27.48432111]
[1772212465893,3.49884168,81.55,81.508,16.44302111]
[1772212466800,3.49884168,81.54,81.508,16.44302111]
[1772212468392,11.0363,81.547,81.508,16.44302111]
[1772212468599,3.49884168,81.55,81.508,16.44302111]
[1772212471003,3.49884168,81.55,81.51,16.4405782]
[1772212471501,11.0344,81.561,81.51,16.4405782]
[1772212471704,3.49884168,81.55,81.51,16.4405782]
[1772212474702,3.49884168,81.56,81.513,16.46599164]
[1772212474903,11.0335,81.568,81.513,16.46599164]
[1772212475097,9.61947444,81.567,81.513,16.46599164]
[1772212475298,9.61947444,81.566,81.513,16.46599164]
[1772212475501,9.61947444,81.565,81.513,16.46599164]
[1772212475802,9.61947444,81.564,81.513,16.46599164]
[1772212476004,14.98515729,81.591,81.513,16.46599164]
[1772212476005,3.49884168,81.55,81.514,16.48419509]
[1772212478207,3.49884168,81.55,81.515,11.0405]
[1772212478403,3.49884168,81.55,81.516,16.69295414]
[1772212480802,14.53334168,81.56,81.516,16.69295414]
[1772212481209,9.62850635,81.559,81.516,16.69295414]
[1772212481408,3.49884168,81.55,81.516,16.69295414]
[1772212482106,11.22953341,81.573,81.516,16.69295414]
[1772212482107,3.49884168,81.56,81.516,16.69295414]
[1772212482307,9.6285438,81.559,81.516,16.69295414]
[1772212482606,9.6285438,81.558,81.516,16.69295414]
[1772212482806,9.6285438,81.557,81.516,16.69295414]
[1772212483007,3.49884168,81.56,81.516,16.69295414]
[1772212483207,9.62896364,81.559,81.516,16.69295414]
[1772212483503,9.62896364,81.558,81.516,16.69295414]
[1772212483703,3.49884168,81.55,81.516,16.69295414]
[1772212485610,3.49884168,81.54,81.5,16.8199046]
[1772212485803,3.49884168,81.53,81.5,16.8199046]
[1772212486202,3.49884168,81.53,81.488,16.8199046]
[1772212486407,9.62754376,81.529,81.488,16.8199046]
[1772212486608,3.49884168,81.53,81.488,16.8199046]
[1772212486814,9.62757975,81.529,81.488,16.8199046]
[1772212487010,20.66637975,81.528,81.47,11.0466]
[1772212487317,9.62757975,81.527,81.471,16.81986692]
[1772212487521,9.62757975,81.526,81.471,16.81986692]
[1772212487817,11.0394,81.524,81.471,16.81986692]
[1772212488015,9.62757975,81.523,81.471,16.81986692]
[1772212488216,9.62757975,81.522,81.471,16.81986692]
[1772212488412,9.62757975,81.521,81.471,16.81986692]
[1772212488612,9.62757975,81.52,81.451,16.81936313]
[1772212488816,9.62757975,81.519,81.451,16.81936313]
[1772212489020,9.62757975,81.518,81.451,16.81936313]
[1772212489315,9.62757975,81.517,81.451,16.81936313]
[1772212489515,9.62757975,81.516,81.458,16.81532942]
[1772212489715,9.62757975,81.515,81.458,16.81532942]
[1772212489914,3.49884168,81.53,81.458,16.81532942]
[1772212489915,9.62757975,81.514,81.458,16.81532942]
[1772212490111,9.62757975,81.513,81.458,16.81532942]
[1772212490312,9.62757975,81.512,81.437,16.81532942]
[1772212490615,11.22953341,81.518,81.437,16.81532942]
[1772212490616,11.22972954,81.507,81.437,16.81532942]
[1772212490818,9.62757975,81.506,81.437,16.81532942]
[1772212491121,9.62757975,81.505,81.437,16.81532942]
[1772212491422,9.62757975,81.504,81.437,16.81532942]
[1772212491615,9.62757975,81.503,81.437,16.81532942]
[1772212491815,9.62757975,81.502,81.437,16.81532942]
[1772212492014,11.0438,81.492,81.437,16.81532942]
[1772212492217,9.62757975,81.491,81.437,16.81532942]
[1772212492416,9.60694792,81.49,81.437,16.81532942]
[1772212492718,9.60694792,81.489,81.437,16.81532942]
[1772212493016,9.60694792,81.488,81.437,16.81532942]
[1772212493220,9.60694792,81.487,81.413,16.99341969]
[1772212493517,9.60694792,81.487,81.4,46.0]
[1772212493518,9.60694792,81.486,81.421,16.99341969]
[1772212493821,9.60694792,81.485,81.421,16.99341969]
[1772212494015,9.60694792,81.484,81.421,16.99341969]
[1772212494211,5.52015377,81.496,81.402,16.98286456]
[1772212494417,5.52015377,81.496,81.315,172.1642]
[1772212494418,9.60694792,81.495,81.421,16.98286456]
[1772212494619,3.49884168,81.5,81.431,16.98273607]
[1772212494816,3.49884168,81.5,81.441,16.98273607]
[1772212496015,3.49884168,81.51,81.451,16.66876474]
[1772212496217,3.49884168,81.51,81.461,16.66876474]
[1772212496417,9.60694792,81.549,81.471,16.66876474]
[1772212496623,3.49884168,81.53,81.481,16.66881696]
[1772212499522,3.49884168,81.55,81.5,3.49884168]
[1772212499724,3.49884168,81.56,81.501,16.53948899]
[1772212500026,3.49884168,81.56,81.511,16.53948899]
[1772212500221,3.49884168,81.57,81.513,16.53948899]
[1772212500521,3.49884168,81.56,81.513,16.53948899]
[1772212501020,9.60694792,81.591,81.513,16.53948899]
[1772212501320,9.60694792,81.595,81.513,16.53948899]
[1772212501623,9.36743351,81.61,81.51,9.36743351]
[1772212501624,9.60694792,81.609,81.531,16.58306772]
[1772212501821,9.60694792,81.608,81.531,16.58306772]
[1772212502023,9.60694792,81.607,81.531,16.58306772]
[1772212502222,9.60694792,81.606,81.531,16.58306772]
[1772212502424,9.60694792,81.605,81.533,11.0381]
[1772212502723,9.60694792,81.605,81.51,9.36743351]
[1772212502724,9.60694792,81.609,81.534,16.58316077]
[1772212503024,9.60694792,81.608,81.534,16.58316077]
[1772212503224,9.60694792,81.608,81.48,9.36743351]
[1772212503225,9.36743351,81.59,81.518,16.58316077]
[1772212503524,9.36743351,81.57,81.504,16.58316077]
[1772212503823,9.36743351,81.59,81.438,22.1018]
[1772212503824,9.36743351,81.55,81.483,16.56645299]
[1772212504821,9.36743351,81.55,81.485,11.0445]
[1772212505126,9.36743351,81.55,81.486,16.56655298]
[1772212505923,9.36743351,81.55,81.488,11.0441]
[1772212506121,9.36743351,81.57,81.489,16.44423739]
[1772212507121,9.36743351,81.57,81.498,16.44439543]
[1772212507327,9.60108205,81.569,81.498,16.44439543]
[1772212507522,9.60108205,81.568,81.498,16.44439543]
[1772212507723,9.60108205,81.567,81.498,16.44439543]
[1772212507922,9.60108205,81.566,81.498,16.44439543]
[1772212508223,11.0346,81.559,81.498,16.44439543]
[1772212508423,9.60108205,81.569,81.498,16.44439543]
[1772212508624,9.60108205,81.589,81.498,16.44439543]
[1772212508928,5.51894795,81.586,81.498,16.44439543]
[1772212509125,11.0317,81.581,81.51,16.46503448]
[1772212509428,44.51195909,81.621,81.51,16.46503448]
[1772212509429,9.60108205,81.58,81.51,16.46503448]
[1772212509627,9.60108205,81.579,81.51,16.46503448]
[1772212509824,9.60108205,81.578,81.51,16.46503448]
[1772212510120,9.60108205,81.577,81.51,16.46503448]
[1772212510324,9.36743351,81.57,81.51,16.46503448]